fUST/lending_fUST_20250121
["ID","MTS","AMOUNT","RATE_DAILY","PERIOD"]
[349813923,1737445844630,-1291.1,0.00023013,3]
[349813924,1737445844641,-500.0,0.00023013,3]
[349813925,1737445844650,-500.0,0.00023013,3]
[349813926,1737445844660,-730.6,0.00023013,3]
[349813927,1737445844669,-500.0,0.00023013,3]
[349813928,1737445844679,-1165.9,0.00023013,3]
[349813929,1737445844688,-765.92,0.00023013,3]
[349813930,1737445844697,-500.0,0.00023013,3]
[349813931,1737445844706,-5055.24,0.00023013,3]
[349813932,1737445844716,-500.0,0.00023013,3]
[349813933,1737445844725,-7533.42,0.00023013,3]
[349813934,1737445844734,-17357.03,0.00023013,3]
[349813935,1737445844744,-500.0,0.00023013,3]
[349813936,1737445844754,-581.55,0.00023013,3]
[349813937,1737445844764,-532.93,0.00023013,3]
[349813938,1737445844774,-500.0,0.00023013,3]
[349813939,1737445844783,-500.0,0.00023013,3]
[349813940,1737445844792,-993.71,0.00023013,3]
[349813941,1737445844802,-2783.63,0.00023013,3]
[349813942,1737445844811,-2198.26,0.00023013,3]
[349813943,1737445844820,-500.0,0.00023013,3]
[349813944,1737445844830,-1215.89,0.00023013,3]
[349813945,1737445844839,-500.0,0.00023013,3]
[349813946,1737445844849,-599.03,0.00023013,3]
[349813947,1737445844859,-931.18,0.00023013,3]
[349813948,1737445844867,-2780.34,0.00023013,3]
[349813949,1737445844876,-1019.74,0.00023013,3]
[349813950,1737445844886,-500.0,0.00023013,3]
[349813951,1737445844895,-599.08,0.00023013,3]
[349813952,1737445844906,-542.33850755,0.00023013,3]
[349813953,1737445844916,-500.0,0.00023013,3]
[349813954,1737445844925,-500.0,0.00023013,3]
[349813955,1737445844935,-1165.5,0.00023013,3]
[349813956,1737445844944,-914.76,0.00023013,3]
[349813957,1737445844954,-994.45,0.00023013,3]
[349813958,1737445844964,-1824.65,0.00023013,3]
[349813959,1737445844974,-10120.31,0.00023013,3]
[349813960,1737445844983,-2012.12,0.00023013,3]
[349813961,1737445844993,-500.0,0.00023013,3]
[349813962,1737445845002,-987.54,0.00023013,3]
[349813963,1737445845011,-572.12,0.00023013,3]
[349813964,1737445845020,-500.0,0.00023013,3]
[349813965,1737445845029,-2599.66,0.00023013,3]
[349813966,1737445845039,-1039.7,0.00023013,3]
[349813967,1737445845048,-4806.59,0.00023013,3]
[349813968,1737445845058,-500.0,0.00023013,3]
[349813969,1737445845067,-4003.99,0.00023013,3]
[349813970,1737445845077,-1354.67,0.00023013,3]
[349813971,1737445845086,-826.73,0.00023013,3]
[349813972,1737445845095,-500.0,0.00023013,3]
[349813973,1737445845106,-500.0,0.00023013,3]
[349813974,1737445845115,-22634.12357932,0.00023013,3]
[349813975,1737445845663,-1501.224324,0.00021698,2]
[349813976,1737445845673,-395.0,0.0002209,2]
[349813977,1737445845683,-500.0,0.00022328,3]
[349813978,1737445845692,-500.0,0.00022465,3]
[349813979,1737445845702,-500.0,0.00022602,3]
[349813980,1737445845711,-636.36139212,0.00022739,3]
[349813981,1737445845720,-5785.64642068,0.00023013,3]
[349813982,1737445845730,-500.0,0.00023013,3]
[349813983,1737445845740,-500.0,0.00023013,3]
[349813984,1737445845749,-1440.09,0.00023013,3]
[349813985,1737445845758,-1221.69,0.00023013,3]
[349813986,1737445845767,-2958.46,0.00023013,3]
[349813987,1737445845777,-609.56360429,0.00023013,3]
[349813988,1737445845788,-789.15,0.00023013,3]
[349813989,1737445845798,-2221.86,0.00023013,3]
[349813990,1737445845807,-421.68271351,0.00023038,3]
[349813991,1737445845817,-1000.0,0.00023101,2]
[349813992,1737445845826,-421.68271351,0.00023141,3]
[349813993,1737445845835,-500.0,0.0002315,3]
[349813994,1737445845845,-500.0,0.0002315,3]
[349813995,1737445845856,-500.0,0.0002315,3]
[349813996,1737445845865,-500.0,0.0002315,3]
[349813997,1737445845874,-500.0,0.0002315,3]
[349813998,1737445845883,-500.0,0.0002315,3]
[349813999,1737445845893,-500.0,0.0002315,3]
[349814000,1737445845902,-500.0,0.0002315,3]
[349814001,1737445845911,-568.07,0.0002315,3]
[349814002,1737445845920,-500.0,0.0002315,3]
[349814003,1737445845929,-932.18,0.0002315,3]
[349814004,1737445845939,-500.0,0.0002315,3]
[349814005,1737445845948,-790.22,0.0002315,3]
[349814006,1737445845960,-164.12147819,0.0002315,3]
[349814007,1737445845970,-500.0,0.0002315,3]
[349814008,1737445845980,-500.0,0.0002315,3]
[349814009,1737445845991,-1606.15,0.0002315,3]
[349814010,1737445846000,-500.0,0.0002315,3]
[349814011,1737445846009,-500.0,0.0002315,3]
[349814012,1737445846018,-500.0,0.0002315,3]
[349814013,1737445846028,-500.0,0.0002315,3]
[349814014,1737445846038,-790.11,0.0002315,3]
[349814015,1737445846047,-572.64,0.0002315,3]
[349814016,1737445846056,-500.0,0.0002315,3]
[349814017,1737445846066,-594.22,0.0002315,3]
[349814018,1737445846075,-500.0,0.0002315,3]
[349814019,1737445846084,-500.0,0.0002315,3]
[349814020,1737445846093,-500.0,0.0002315,3]
[349814021,1737445846104,-500.0,0.0002315,3]
[349814022,1737445846113,-500.0,0.0002315,3]
[349814023,1737445846122,-553.37,0.0002315,3]
[349814024,1737445846131,-500.0,0.0002315,3]
[349814025,1737445846140,-620.57,0.0002315,3]
[349814026,1737445846149,-542.23,0.0002315,3]
[349814027,1737445846158,-500.0,0.0002315,3]
[349814029,1737445846167,-500.0,0.0002315,3]
[349814030,1737445846176,-500.0,0.0002315,3]
[349814032,1737445846186,-500.0,0.0002315,3]
[349814034,1737445846195,-151.0,0.0002315,6]
[349814037,1737445846323,-719.29,0.0002315,2]
[349814038,1737445846333,-2046.88,0.0002315,3]
[349814039,1737445846343,-452.13658627,0.0002315,3]
[349814040,1737445846357,-1291.1,0.0002315,3]
[349814041,1737445846366,-490.48674018,0.0002315,3]
[349814048,1737445846459,-9.51325982,0.0002315,3]
[349814050,1737445846475,-500.0,0.0002315,3]
[349814051,1737445846491,-730.6,0.0002315,3]
[349814052,1737445846501,-500.0,0.0002315,3]
[349814053,1737445846511,-676.86439057,0.0002315,3]
[349814054,1737445846522,-489.03560943,0.0002315,3]
[349814055,1737445846532,-120.98899884,0.0002315,3]
[349814056,1737445846563,-1200.0,0.00022328,2]
[349814057,1737445846573,-644.93100116,0.0002315,3]
[349814058,1737445846583,-500.0,0.0002315,3]
[349814059,1737445846595,-500.0,0.0002315,3]
[349814060,1737445846610,-917.27316884,0.0002315,3]
[349814066,1737445846698,-2291.333,0.0002315,3]
[349814075,1737445846778,-341.65759997,0.0002315,3]
[349814077,1737445846814,-1501.224324,0.00021481,2]
[349814078,1737445846824,-3983.15623119,0.0002315,3]
[349814079,1737445846834,-3788.90291481,0.0002315,3]
[349814082,1737446694096,160.025057,0.00013973,2]
[349814133,1737447032838,-794.06699399,0.00018112,2]
[349814134,1737447032848,-794.06699399,0.00018295,2]
[349814135,1737447032857,-291.17942475,0.00019628,2]
[349814136,1737447032867,-168.312993,0.00019917,2]
[349814137,1737447032877,-160.931325,0.00020082,2]
[349814138,1737447032886,-6131.70849026,0.00020135,2]
[349814139,1737447032897,-421.49265646,0.00020135,2]
[349814140,1737447032909,-255.88572558,0.00020135,2]
[349814141,1737447032918,-219.1353694,0.00020282,2]
[349814142,1737447032927,-164.2097625,0.00020382,2]
[349814143,1737447032936,-300.0,0.00020412,2]
[349814144,1737447032945,-1327.0,0.00020413,2]
[349814145,1737447032954,-502.88756924,0.00020432,2]
[349814146,1737447032965,-4042.0,0.00021,2]
[349814147,1737447032975,-160.025057,0.00021209,2]
[349814148,1737447032986,-395.0,0.00021418,2]
[349814149,1737447032998,-202.21715917,0.00021798,2]
[349814150,1737447033007,-1000.0,0.000218,3]
[349814151,1737447033018,-214.42112075,0.00021817,2]
[349814152,1737447033027,-152.0,0.0002187,2]
[349814153,1737447033038,-541.79,0.000219,2]
[349814154,1737447033048,-500.0,0.00021917,3]
[349814155,1737447033058,-500.0,0.00021917,3]
[349814156,1737447033070,-633.21346866,0.00021917,3]
[349814157,1737447033080,-490.06641135,0.00021917,3]
[349814158,1737447033090,-468.68774112,0.00021917,3]
[349814159,1737447033100,-509.73284338,0.00021917,3]
[349814160,1737447033110,-500.0,0.00021917,3]
[349814161,1737447033121,-500.0,0.00021917,3]
[349814162,1737447033131,-500.0,0.00021917,3]
[349814163,1737447033141,-500.0,0.00021917,3]
[349814164,1737447033151,-500.0,0.00021917,3]
[349814165,1737447033161,-500.0,0.00021917,3]
[349814166,1737447033171,-936.92,0.00021917,3]
[349814167,1737447033184,-500.0,0.00021917,3]
[349814168,1737447033195,-500.0,0.00021917,3]
[349814169,1737447033205,-500.0,0.00021917,3]
[349814170,1737447033220,-500.0,0.00021917,3]
[349814171,1737447033231,-500.0,0.00021917,3]
[349814172,1737447033242,-500.0,0.00021917,3]
[349814173,1737447033254,-500.0,0.00021917,3]
[349814174,1737447033266,-500.0,0.00021917,3]
[349814175,1737447033276,-500.0,0.00021917,3]
[349814176,1737447033286,-502.63116786,0.00021917,2]
[349814177,1737447033296,-500.0,0.00021917,3]
[349814178,1737447033308,-500.0,0.00021917,3]
[349814179,1737447033318,-500.0,0.00021917,3]
[349814180,1737447033328,-500.0,0.00021917,3]
[349814181,1737447033338,-500.0,0.00021917,3]
[349814182,1737447033350,-500.0,0.00021917,3]
[349814183,1737447033360,-500.0,0.00021917,3]
[349814184,1737447033370,-500.0,0.00021917,3]
[349814185,1737447033380,-500.0,0.00021917,3]
[349814186,1737447033390,-500.0,0.00021917,3]
[349814187,1737447033402,-500.0,0.00021917,3]
[349814188,1737447033412,-500.0,0.00021917,3]
[349814189,1737447033423,-500.0,0.00021917,2]
[349814190,1737447033433,-500.0,0.00021917,3]
[349814191,1737447033443,-1069.65,0.00021917,3]
[349814192,1737447033453,-500.0,0.00021917,3]
[349814193,1737447033467,-500.0,0.00021917,3]
[349814194,1737447033476,-500.0,0.00021917,3]
[349814195,1737447033487,-500.0,0.00021917,3]
[349814196,1737447033496,-500.0,0.00021917,3]
[349814197,1737447033506,-500.0,0.00021917,3]
[349814198,1737447033516,-500.0,0.00021917,3]
[349814199,1737447033526,-500.0,0.00021917,3]
[349814200,1737447033537,-500.0,0.00021917,3]
[349814201,1737447033546,-11351.64,0.00021917,3]
[349814202,1737447033556,-500.0,0.00021917,3]
[349814203,1737447033566,-500.0,0.00021917,3]
[349814204,1737447033575,-4767.4,0.00021917,3]
[349814205,1737447033585,-500.0,0.00021917,3]
[349814206,1737447033595,-500.0,0.00021917,3]
[349814207,1737447033604,-500.0,0.00021917,3]
[349814208,1737447033614,-1948.11,0.00021917,3]
[349814209,1737447033625,-621.07,0.00021917,3]
[349814210,1737447033634,-500.0,0.00021917,3]
[349814211,1737447033644,-500.0,0.00021917,3]
[349814212,1737447033654,-500.0,0.00021917,3]
[349814213,1737447033664,-1386.82,0.00021917,3]
[349814214,1737447033675,-581.99,0.00021917,3]
[349814215,1737447033684,-500.0,0.00021917,3]
[349814216,1737447033693,-759.93,0.00021917,3]
[349814217,1737447033703,-500.0,0.00021917,3]
[349814218,1737447033712,-571.72,0.00021917,3]
[349814219,1737447033724,-500.0,0.00021917,3]
[349814220,1737447033734,-637.34,0.00021917,3]
[349814221,1737447033744,-500.0,0.00021917,3]
[349814222,1737447033754,-500.0,0.00021917,3]
[349814223,1737447033764,-500.0,0.00021917,3]
[349814224,1737447033774,-1257.57,0.00021917,3]
[349814225,1737447033784,-500.0,0.00021917,3]
[349814226,1737447033794,-500.0,0.00021917,3]
[349814227,1737447033804,-1140.41,0.00021917,3]
[349814228,1737447033813,-2502.49,0.00021917,3]
[349814229,1737447033822,-6827.36,0.00021917,3]
[349814230,1737447033831,-617.21,0.00021917,3]
[349814231,1737447033841,-500.0,0.00021917,3]
[349814232,1737447033850,-516.7,0.00021917,3]
[349814233,1737447033859,-846.67,0.00021917,3]
[349814234,1737447033868,-1664.63,0.00021917,3]
[349814235,1737447033878,-500.0,0.00021917,3]
[349814236,1737447033887,-3068.8,0.00021917,3]
[349814237,1737447033897,-649.81,0.00021917,3]
[349814238,1737447033907,-19863.67,0.00021917,3]
[349814239,1737447033918,-900.06,0.00021917,3]
[349814240,1737447033928,-1850.83,0.00021917,3]
[349814241,1737447033938,-500.0,0.00021917,3]
[349814242,1737447033947,-500.0,0.00021917,3]
[349814243,1737447033957,-500.0,0.00021917,3]
[349814244,1737447033970,-763.55,0.00021917,3]
[349814245,1737447033984,-500.0,0.00021917,3]
[349814246,1737447033994,-728.43,0.00021917,3]
[349814247,1737447034004,-540.1,0.00021917,3]
[349814248,1737447034015,-1507.39,0.00021917,3]
[349814249,1737447034027,-500.0,0.00021917,3]
[349814250,1737447034036,-500.0,0.00021917,3]
[349814251,1737447034047,-500.0,0.00021917,3]
[349814252,1737447034058,-763.12,0.00021917,3]
[349814253,1737447034069,-500.0,0.00021917,3]
[349814254,1737447034078,-1194.01,0.00021917,3]
[349814255,1737447034088,-543.78,0.00021917,3]
[349814256,1737447034098,-500.0,0.00021917,3]
[349814257,1737447034108,-753.14,0.00021917,3]
[349814258,1737447034118,-500.0,0.00021917,3]
[349814259,1737447034129,-500.0,0.00021917,3]
[349814260,1737447034138,-500.0,0.00021917,3]
[349814261,1737447034148,-500.0,0.00021917,3]
[349814262,1737447034158,-500.0,0.00021917,3]
[349814263,1737447034169,-544.16,0.00021917,3]
[349814264,1737447034178,-2057.37,0.00021917,3]
[349814265,1737447034188,-500.0,0.00021917,3]
[349814266,1737447034198,-680.11,0.00021917,3]
[349814267,1737447034208,-500.0,0.00021917,3]
[349814268,1737447034221,-500.0,0.00021917,3]
[349814269,1737447034230,-500.0,0.00021917,3]
[349814270,1737447034240,-214.42112072,0.00021954,2]
[349814271,1737447034249,-323.135,0.0002199,2]
[349814272,1737447034259,-1327.0,0.00022046,4]
[349814273,1737447034269,-500.0,0.00022054,3]
[349814274,1737447034279,-500.0,0.00022054,3]
[349814275,1737447034290,-500.0,0.00022054,3]
[349814276,1737447034300,-500.0,0.00022054,3]
[349814277,1737447034310,-500.0,0.00022054,3]
[349814278,1737447034320,-500.0,0.00022054,3]
[349814279,1737447034330,-540.12259518,0.00022054,3]
[349814280,1737447034340,-500.0,0.00022054,3]
[349814281,1737447034350,-936.92,0.00022054,3]
[349814282,1737447034360,-500.0,0.00022054,3]
[349814283,1737447034369,-500.0,0.00022054,3]
[349814284,1737447034380,-500.0,0.00022054,3]
[349814285,1737447034390,-500.0,0.00022054,3]
[349814286,1737447034401,-500.0,0.00022054,3]
[349814287,1737447034412,-500.0,0.00022054,3]
[349814288,1737447034423,-500.0,0.00022054,3]
[349814289,1737447034432,-500.0,0.00022054,3]
[349814290,1737447034442,-500.0,0.00022054,3]
[349814291,1737447034453,-500.0,0.00022054,3]
[349814292,1737447034465,-500.0,0.00022054,3]
[349814293,1737447034476,-500.0,0.00022054,3]
[349814294,1737447034486,-500.0,0.00022054,3]
[349814295,1737447034496,-500.0,0.00022054,3]
[349814296,1737447034506,-500.0,0.00022054,3]
[349814297,1737447034515,-500.0,0.00022054,3]
[349814298,1737447034684,-500.0,0.00022054,3]
[349814299,1737447034694,-500.0,0.00022054,3]
[349814300,1737447034705,-500.0,0.00022054,2]
[349814301,1737447034717,-276.30134336,0.00022054,3]
[349814302,1737447034726,-1069.65,0.00022054,3]
[349814303,1737447034735,-500.0,0.00022054,3]
[349814304,1737447034745,-500.0,0.00022054,3]
[349814305,1737447034754,-500.0,0.00022054,3]
[349814306,1737447034763,-500.0,0.00022054,3]
[349814307,1737447034773,-11351.64,0.00022054,3]
[349814308,1737447034782,-500.0,0.00022054,3]
[349814309,1737447034791,-4767.4,0.00022054,3]
[349814310,1737447034800,-500.0,0.00022054,3]
[349814311,1737447034809,-500.0,0.00022054,3]
[349814312,1737447034818,-500.0,0.00022054,3]
[349814313,1737447034828,-1948.11,0.00022054,3]
[349814314,1737447034837,-621.07,0.00022054,3]
[349814315,1737447034846,-500.0,0.00022054,3]
[349814316,1737447034856,-500.0,0.00022054,3]
[349814317,1737447034865,-500.0,0.00022054,3]
[349814318,1737447034874,-1386.82,0.00022054,3]
[349814319,1737447034883,-581.99,0.00022054,3]
[349814320,1737447034893,-500.0,0.00022054,3]
[349814321,1737447034902,-759.93,0.00022054,3]
[349814322,1737447034911,-500.0,0.00022054,3]
[349814323,1737447034920,-571.72,0.00022054,3]
[349814324,1737447034929,-500.0,0.00022054,3]
[349814325,1737447034938,-637.34,0.00022054,3]
[349814326,1737447034947,-500.0,0.00022054,3]
[349814327,1737447034956,-500.0,0.00022054,3]
[349814328,1737447034968,-593.77734507,0.00022054,3]
[349814329,1737447034978,-1257.57,0.00022054,3]
[349814330,1737447034989,-500.0,0.00022054,3]
[349814331,1737447034999,-1140.41,0.00022054,3]
[349814332,1737447035012,-2502.49,0.00022054,3]
[349814333,1737447035022,-6827.36,0.00022054,3]
[349814334,1737447035031,-617.21,0.00022054,3]
[349814335,1737447035041,-262.15513614,0.00022054,3]
[349814336,1737447035050,-516.7,0.00022054,3]
[349814337,1737447035061,-846.67,0.00022054,3]
[349814338,1737447035070,-1664.63,0.00022054,3]
[349814339,1737447035079,-365.71295687,0.00022054,3]
[349814340,1737447035089,-3068.8,0.00022054,3]
[349814341,1737447035099,-649.81,0.00022054,3]
[349814342,1737447035108,-19863.67,0.00022054,3]
[349814343,1737447035117,-900.06,0.00022054,3]
[349814344,1737447035127,-1850.83,0.00022054,3]
[349814345,1737447035136,-500.0,0.00022054,3]
[349814346,1737447035145,-500.0,0.00022054,3]
[349814347,1737447035155,-500.0,0.00022054,3]
[349814348,1737447035165,-763.55,0.00022054,3]
[349814349,1737447035175,-500.0,0.00022054,3]
[349814350,1737447035185,-728.43,0.00022054,3]
[349814351,1737447035194,-540.1,0.00022054,3]
[349814352,1737447035203,-1507.39,0.00022054,3]
[349814353,1737447035213,-500.0,0.00022054,3]
[349814354,1737447035222,-500.0,0.00022054,3]
[349814355,1737447035231,-763.12,0.00022054,3]
[349814356,1737447035241,-500.0,0.00022054,3]
[349814357,1737447035250,-1194.01,0.00022054,3]
[349814358,1737447035259,-543.78,0.00022054,3]
[349814359,1737447035268,-500.0,0.00022054,3]
[349814360,1737447035278,-753.14,0.00022054,3]
[349814361,1737447035287,-500.0,0.00022054,3]
[349814362,1737447035296,-500.0,0.00022054,3]
[349814363,1737447035305,-500.0,0.00022054,3]
[349814364,1737447035314,-500.0,0.00022054,3]
[349814365,1737447035323,-500.0,0.00022054,3]
[349814366,1737447035332,-544.16,0.00022054,3]
[349814367,1737447035341,-2057.37,0.00022054,3]
[349814368,1737447035350,-500.0,0.00022054,3]
[349814369,1737447035360,-680.11,0.00022054,3]
[349814370,1737447035370,-500.0,0.00022054,3]
[349814371,1737447035379,-500.0,0.00022054,3]
[349814372,1737447035388,-500.0,0.00022054,3]
[349814373,1737447035398,-214.42112072,0.00022091,2]
[349814374,1737447035408,-385.0,0.000221,10]
[349814375,1737447035418,-371.72538684,0.00022148,2]
[349814376,1737447035427,-500.0,0.00022191,3]
[349814377,1737447035437,-500.0,0.00022191,3]
[349814378,1737447035447,-500.0,0.00022191,3]
[349814379,1737447035456,-500.0,0.00022191,3]
[349814380,1737447035466,-247.96307359,0.00022191,3]
[349814381,1737447035476,-500.0,0.00022191,3]
[349814382,1737447035485,-500.0,0.00022191,3]
[349814383,1737447035494,-936.92,0.00022191,3]
[349814384,1737447035503,-500.0,0.00022191,3]
[349814385,1737447035512,-500.0,0.00022191,3]
[349814386,1737447035522,-500.0,0.00022191,3]
[349814387,1737447035531,-500.0,0.00022191,3]
[349814388,1737447035541,-500.0,0.00022191,3]
[349814389,1737447035550,-500.0,0.00022191,3]
[349814390,1737447035559,-500.0,0.00022191,3]
[349814391,1737447035569,-500.0,0.00022191,3]
[349814392,1737447035578,-500.0,0.00022191,3]
[349814393,1737447035587,-500.0,0.00022191,3]
[349814394,1737447035596,-500.0,0.00022191,3]
[349814395,1737447035605,-500.0,0.00022191,3]
[349814396,1737447035615,-500.0,0.00022191,3]
[349814397,1737447035624,-167.22937128,0.00022191,3]
[349814398,1737447035633,-500.0,0.00022191,3]
[349814399,1737447035642,-500.0,0.00022191,3]
[349814400,1737447035651,-500.0,0.00022191,3]
[349814401,1737447035661,-500.0,0.00022191,3]
[349814402,1737447035670,-500.0,0.00022191,2]
[349814403,1737447035680,-1069.65,0.00022191,3]
[349814404,1737447035689,-500.0,0.00022191,3]
[349814405,1737447035699,-295.31303357,0.00022191,3]
[349814406,1737447035708,-500.0,0.00022191,3]
[349814407,1737447035721,-500.0,0.00022191,3]
[349814408,1737447035730,-11351.64,0.00022191,3]
[349814409,1737447035740,-500.0,0.00022191,3]
[349814410,1737447035749,-4767.4,0.00022191,3]
[349814411,1737447035758,-500.0,0.00022191,3]
[349814412,1737447035768,-500.0,0.00022191,3]
[349814413,1737447035777,-301.84850131,0.00022191,3]
[349814414,1737447035786,-1948.11,0.00022191,3]
[349814415,1737447035795,-621.07,0.00022191,3]
[349814416,1737447035805,-500.0,0.00022191,3]
[349814417,1737447035814,-500.0,0.00022191,3]
[349814418,1737447035823,-500.0,0.00022191,3]
[349814419,1737447035833,-1386.82,0.00022191,3]
[349814420,1737447035842,-581.99,0.00022191,3]
[349814421,1737447035852,-500.0,0.00022191,3]
[349814422,1737447035861,-759.93,0.00022191,3]
[349814423,1737447035870,-500.0,0.00022191,3]
[349814424,1737447035880,-571.72,0.00022191,3]
[349814425,1737447035889,-500.0,0.00022191,3]
[349814426,1737447035898,-637.34,0.00022191,3]
[349814427,1737447035908,-500.0,0.00022191,3]
[349814428,1737447035918,-500.0,0.00022191,3]
[349814429,1737447035927,-1257.57,0.00022191,3]
[349814430,1737447035936,-500.0,0.00022191,3]
[349814431,1737447035945,-1140.41,0.00022191,3]
[349814432,1737447035954,-2502.49,0.00022191,3]
[349814433,1737447035965,-6827.36,0.00022191,3]
[349814434,1737447035978,-617.21,0.00022191,3]
[349814435,1737447035987,-516.7,0.00022191,3]
[349814436,1737447035997,-846.67,0.00022191,3]
[349814437,1737447036008,-1664.63,0.00022191,3]
[349814438,1737447036019,-3068.8,0.00022191,3]
[349814439,1737447036028,-649.81,0.00022191,3]
[349814440,1737447036038,-19863.67,0.00022191,3]
[349814441,1737447036048,-900.06,0.00022191,3]
[349814442,1737447036058,-1850.83,0.00022191,3]
[349814443,1737447036067,-500.0,0.00022191,3]
[349814444,1737447036077,-500.0,0.00022191,3]
[349814445,1737447036086,-500.0,0.00022191,3]
[349814446,1737447036096,-763.55,0.00022191,3]
[349814447,1737447036105,-500.0,0.00022191,3]
[349814448,1737447036115,-728.43,0.00022191,3]
[349814449,1737447036124,-540.1,0.00022191,3]
[349814450,1737447036133,-1507.39,0.00022191,3]
[349814451,1737447036143,-500.0,0.00022191,3]
[349814452,1737447036152,-500.0,0.00022191,3]
[349814453,1737447036161,-763.12,0.00022191,3]
[349814454,1737447036183,-500.0,0.00022191,3]
[349814455,1737447036193,-1194.01,0.00022191,3]
[349814456,1737447036202,-543.78,0.00022191,3]
[349814457,1737447036211,-500.0,0.00022191,3]
[349814458,1737447036223,-753.14,0.00022191,3]
[349814459,1737447036232,-500.0,0.00022191,3]
[349814460,1737447036242,-500.0,0.00022191,3]
[349814461,1737447036251,-500.0,0.00022191,3]
[349814462,1737447036260,-500.0,0.00022191,3]
[349814463,1737447036270,-500.0,0.00022191,3]
[349814464,1737447036279,-544.16,0.00022191,3]
[349814465,1737447036288,-2057.37,0.00022191,3]
[349814466,1737447036297,-500.0,0.00022191,3]
[349814467,1737447036307,-680.11,0.00022191,3]
[349814468,1737447036316,-500.0,0.00022191,3]
[349814469,1737447036325,-500.0,0.00022191,3]
[349814470,1737447036334,-500.0,0.00022191,3]
[349814471,1737447036343,-420.0,0.00022217,2]
[349814472,1737447036352,-203.0192762,0.00022221,2]
[349814473,1737447036361,-24824.799487,0.00022228,3]
[349814474,1737447036371,-214.42112072,0.00022228,2]
[349814475,1737447036380,-500.0,0.00022328,3]
[349814476,1737447036389,-500.0,0.00022328,3]
[349814477,1737447036401,-500.0,0.00022328,3]
[349814478,1737447036411,-500.0,0.00022328,3]
[349814479,1737447036420,-500.0,0.00022328,3]
[349814480,1737447036430,-500.0,0.00022328,3]
[349814481,1737447036439,-936.92,0.00022328,3]
[349814482,1737447036449,-500.0,0.00022328,3]
[349814483,1737447036458,-500.0,0.00022328,3]
[349814484,1737447036470,-500.0,0.00022328,3]
[349814485,1737447036479,-500.0,0.00022328,3]
[349814486,1737447036489,-500.0,0.00022328,3]
[349814487,1737447036499,-500.0,0.00022328,3]
[349814488,1737447036508,-500.0,0.00022328,3]
[349814489,1737447036518,-500.0,0.00022328,3]
[349814490,1737447036528,-500.0,0.00022328,3]
[349814491,1737447036538,-500.0,0.00022328,3]
[349814492,1737447036547,-500.0,0.00022328,3]
[349814493,1737447036557,-500.0,0.00022328,3]
[349814494,1737447036566,-500.0,0.00022328,3]
[349814495,1737447036576,-500.0,0.00022328,3]
[349814496,1737447036586,-500.0,0.00022328,3]
[349814497,1737447036595,-500.0,0.00022328,3]
[349814498,1737447036605,-500.0,0.00022328,3]
[349814499,1737447036614,-500.0,0.00022328,2]
[349814500,1737447036624,-1069.65,0.00022328,3]